[Event "Late-Titled-Tuesday-Blitz-September-05-2023"]
[Site "Chess.com"]
[Date "2023.09.05"]
[Round "7"]
[White "CraiggoryC"]
[Black "jorquerino"]
[Result "0-1"]
[WhiteElo "2227"]
[BlackElo "2342"]
[TimeControl "180+1"]
[EndTime "15:13:07 PDT"]
[Termination "jorquerino won by resignation"]

1. e4 {[%clk 0:02:57.1]} 1... d5 {[%clk 0:02:59.7]} 2. exd5 {[%clk 0:02:57.2]}
2... Nf6 {[%clk 0:03:00.1]} 3. Bb5+ {[%clk 0:02:56.5]} 3... Bd7 {[%clk
0:02:59.6]} 4. Be2 {[%clk 0:02:57.4]} 4... Nxd5 {[%clk 0:02:58.5]} 5. d4 {[%clk
0:02:57.4]} 5... Bf5 {[%clk 0:02:58.8]} 6. Nf3 {[%clk 0:02:54.1]} 6... e6 {[%clk
0:02:58.5]} 7. O-O {[%clk 0:02:53.9]} 7... Be7 {[%clk 0:02:58.2]} 8. c4 {[%clk
0:02:53.1]} 8... Nb6 {[%clk 0:02:57.6]} 9. b3 {[%clk 0:02:46.6]} 9... O-O {[%clk
0:02:56.7]} 10. Ba3 {[%clk 0:02:34.4]} 10... Nc6 {[%clk 0:02:52.1]} 11. Bxe7
{[%clk 0:02:28.1]} 11... Qxe7 {[%clk 0:02:51.5]} 12. Nc3 {[%clk 0:02:28.1]}
12... Rfd8 {[%clk 0:02:49]} 13. Re1 {[%clk 0:02:27.2]} 13... Qf6 {[%clk
0:02:43.2]} 14. Nb5 {[%clk 0:02:22.5]} 14... Rd7 {[%clk 0:02:42.2]} 15. d5
{[%clk 0:02:05.5]} 15... exd5 {[%clk 0:02:20.6]} 16. Nfd4 {[%clk 0:02:04.7]}
16... dxc4 {[%clk 0:02:11.2]} 0-1

[Event "Late-Titled-Tuesday-Blitz-September-05-2023"]
[Site "Chess.com"]
[Date "2023.09.05"]
[Round "7"]
[White "BeanScreen"]
[Black "colegiodemadrid"]
[Result "1-0"]
[WhiteElo "2705"]
[BlackElo "2503"]
[TimeControl "180+1"]
[EndTime "15:13:38 PDT"]
[Termination "BeanScreen won by resignation"]

1. e4 {[%clk 0:03:00.9]} 1... e5 {[%clk 0:02:59.9]} 2. Nf3 {[%clk 0:03:00.8]}
2... Nc6 {[%clk 0:02:59.9]} 3. Bc4 {[%clk 0:03:00.6]} 3... Bc5 {[%clk 0:03:00]}
4. d3 {[%clk 0:02:59.3]} 4... Nf6 {[%clk 0:02:58.6]} 5. c3 {[%clk 0:02:58.9]}
5... O-O {[%clk 0:02:59.1]} 6. O-O {[%clk 0:02:58.4]} 6... d5 {[%clk 0:02:59.4]}
7. exd5 {[%clk 0:02:58]} 7... Nxd5 {[%clk 0:03:00.1]} 8. Re1 {[%clk 0:02:58.2]}
8... Nb6 {[%clk 0:02:56.1]} 9. Bb5 {[%clk 0:02:55.5]} 9... Bg4 {[%clk
0:02:55.5]} 10. Bxc6 {[%clk 0:02:49.1]} 10... bxc6 {[%clk 0:02:54.3]} 11. Rxe5
{[%clk 0:02:49.3]} 11... Bd6 {[%clk 0:02:38.2]} 12. Re1 {[%clk 0:02:48.5]} 12...
Qf6 {[%clk 0:02:35.5]} 13. Nbd2 {[%clk 0:02:46.7]} 13... Qg6 {[%clk 0:02:33.1]}
14. Ne4 {[%clk 0:02:40.6]} 14... Rfe8 {[%clk 0:02:28.9]} 15. Bd2 {[%clk
0:02:00.9]} 15... Nd5 {[%clk 0:02:21.8]} 16. h3 {[%clk 0:01:59.5]} 16... Bf5
{[%clk 0:02:14.4]} 17. Nh4 {[%clk 0:01:58.3]} 17... Qe6 {[%clk 0:02:11.3]} 18.
Ng3 {[%clk 0:01:57.5]} 18... Bxg3 {[%clk 0:02:07.2]} 19. Rxe6 {[%clk 0:01:56.8]}
19... Bxh4 {[%clk 0:02:07.6]} 20. Rxe8+ {[%clk 0:01:54.9]} 20... Rxe8 {[%clk
0:02:08.2]} 21. Qh5 {[%clk 0:01:54.9]} 1-0

[Event "Late-Titled-Tuesday-Blitz-September-05-2023"]
[Site "Chess.com"]
[Date "2023.09.05"]
[Round "7"]
[White "rikchessmx"]
[Black "RebecaJimnz"]
[Result "1-0"]
[WhiteElo "2399"]
[BlackElo "2235"]
[TimeControl "180+1"]
[EndTime "15:13:47 PDT"]
[Termination "rikchessmx won by resignation"]

1. e4 {[%clk 0:03:00.9]} 1... c5 {[%clk 0:02:59.2]} 2. Nf3 {[%clk 0:03:00.3]}
2... Nc6 {[%clk 0:02:59.6]} 3. d4 {[%clk 0:03:01.2]} 3... cxd4 {[%clk
0:03:00.5]} 4. Nxd4 {[%clk 0:03:01.6]} 4... g6 {[%clk 0:03:01.2]} 5. Nxc6 {[%clk
0:03:00.6]} 5... bxc6 {[%clk 0:02:56.8]} 6. Qd4 {[%clk 0:03:00.9]} 6... Nf6
{[%clk 0:02:56.6]} 7. e5 {[%clk 0:03:01.4]} 7... Nd5 {[%clk 0:02:56.9]} 8. e6
{[%clk 0:03:01.9]} 8... f6 {[%clk 0:02:57.4]} 9. exd7+ {[%clk 0:03:01.9]} 9...
Qxd7 {[%clk 0:02:52.4]} 10. Bc4 {[%clk 0:03:00]} 10... Bg7 {[%clk 0:02:47.7]}
11. O-O {[%clk 0:02:59]} 11... Nb6 {[%clk 0:02:44.9]} 12. Qxd7+ {[%clk
0:02:55.3]} 12... Bxd7 {[%clk 0:02:45.8]} 13. Bb3 {[%clk 0:02:55]} 13... O-O-O
{[%clk 0:02:43.6]} 14. a4 {[%clk 0:02:53]} 14... e5 {[%clk 0:02:36.1]} 15. Nc3
{[%clk 0:02:52.5]} 15... f5 {[%clk 0:02:29.3]} 16. a5 {[%clk 0:02:47.7]} 16...
Na8 {[%clk 0:02:29.5]} 17. Bg5 {[%clk 0:02:45.5]} 17... Rde8 {[%clk 0:02:26.5]}
18. Rfd1 {[%clk 0:02:44.8]} 18... Nc7 {[%clk 0:02:25.2]} 19. Be3 {[%clk
0:02:40.4]} 19... a6 {[%clk 0:02:18.7]} 20. Bb6 {[%clk 0:02:38.4]} 20... Be6
{[%clk 0:02:15.7]} 21. Ba4 {[%clk 0:02:37.8]} 21... Kb7 {[%clk 0:02:11.1]} 22.
Rd6 {[%clk 0:02:34.5]} 22... Bd5 {[%clk 0:01:41.6]} 23. Nxd5 {[%clk 0:02:31.1]}
23... cxd5 {[%clk 0:01:34.9]} 24. Bxe8 {[%clk 0:02:25]} 24... Rxe8 {[%clk
0:01:35.5]} 25. Rd7 {[%clk 0:02:25.2]} 1-0

[Event "Late-Titled-Tuesday-Blitz-September-05-2023"]
[Site "Chess.com"]
[Date "2023.09.05"]
[Round "7"]
[White "ketster"]
[Black "delqate"]
[Result "1-0"]
[WhiteElo "2539"]
[BlackElo "2377"]
[TimeControl "180+1"]
[EndTime "15:14:54 PDT"]
[Termination "ketster won by checkmate"]

1. c4 {[%clk 0:02:44.2]} 1... Nf6 {[%clk 0:02:58.8]} 2. Nf3 {[%clk 0:02:44.6]}
2... e6 {[%clk 0:02:59]} 3. Nc3 {[%clk 0:02:44.7]} 3... c6 {[%clk 0:02:59.9]} 4.
e4 {[%clk 0:02:43.5]} 4... Be7 {[%clk 0:03:00.8]} 5. d4 {[%clk 0:02:42.5]} 5...
d5 {[%clk 0:03:01.1]} 6. e5 {[%clk 0:02:42.2]} 6... Nfd7 {[%clk 0:03:01.7]} 7.
cxd5 {[%clk 0:02:42.6]} 7... cxd5 {[%clk 0:03:02.3]} 8. Bd3 {[%clk 0:02:42.7]}
8... O-O {[%clk 0:03:02.8]} 9. O-O {[%clk 0:02:42.7]} 9... Nc6 {[%clk
0:03:01.6]} 10. Be3 {[%clk 0:02:39.1]} 10... a6 {[%clk 0:02:59.4]} 11. Rc1
{[%clk 0:02:35.3]} 11... Qb6 {[%clk 0:02:57.4]} 12. Qe2 {[%clk 0:02:31.6]} 12...
Nb4 {[%clk 0:02:55.4]} 13. Bb1 {[%clk 0:02:31.1]} 13... Re8 {[%clk 0:02:50.8]}
14. h4 {[%clk 0:02:27.9]} 14... g6 {[%clk 0:02:49]} 15. h5 {[%clk 0:02:21.9]}
15... Bf8 {[%clk 0:02:48.2]} 16. Ng5 {[%clk 0:02:10.6]} 16... Re7 {[%clk
0:02:07.2]} 17. Qg4 {[%clk 0:01:48.7]} 17... Bg7 {[%clk 0:02:06.5]} 18. Nxh7
{[%clk 0:01:31.9]} 18... Kxh7 {[%clk 0:02:05.5]} 19. hxg6+ {[%clk 0:01:32.5]}
19... fxg6 {[%clk 0:02:06.4]} 20. Qxg6+ {[%clk 0:01:32.3]} 20... Kg8 {[%clk
0:02:07.3]} 21. Qh7+ {[%clk 0:01:27.8]} 21... Kf8 {[%clk 0:01:59.4]} 22. Bg6
{[%clk 0:01:16.9]} 22... Bxe5 {[%clk 0:01:29.5]} 23. Bh6+ {[%clk 0:01:14.9]}
23... Bg7 {[%clk 0:01:28]} 24. Qh8# {[%clk 0:01:14.3]} 1-0

[Event "Late-Titled-Tuesday-Blitz-September-05-2023"]
[Site "Chess.com"]
[Date "2023.09.05"]
[Round "7"]
[White "sterpfi"]
[Black "Sulthankan"]
[Result "1-0"]
[WhiteElo "2179"]
[BlackElo "2373"]
[TimeControl "180+1"]
[EndTime "15:15:02 PDT"]
[Termination "sterpfi won by resignation"]

1. e4 {[%clk 0:03:00]} 1... c5 {[%clk 0:02:58.1]} 2. Nf3 {[%clk 0:02:59.9]} 2...
d6 {[%clk 0:02:57.7]} 3. Bb5+ {[%clk 0:02:59.4]} 3... Bd7 {[%clk 0:02:57.9]} 4.
Bxd7+ {[%clk 0:02:59.8]} 4... Nxd7 {[%clk 0:02:57.4]} 5. O-O {[%clk 0:02:59.3]}
5... Ngf6 {[%clk 0:02:58.1]} 6. Qe2 {[%clk 0:02:59.8]} 6... e6 {[%clk
0:02:56.1]} 7. c3 {[%clk 0:03:00.1]} 7... Be7 {[%clk 0:02:55.7]} 8. d4 {[%clk
0:03:00.3]} 8... O-O {[%clk 0:02:56.6]} 9. e5 {[%clk 0:02:38.4]} 9... Nd5 {[%clk
0:02:51.2]} 10. exd6 {[%clk 0:02:35.1]} 10... Bxd6 {[%clk 0:02:51.1]} 11. dxc5
{[%clk 0:02:30.5]} 11... Bxc5 {[%clk 0:02:34.4]} 12. Rd1 {[%clk 0:02:25.9]}
12... Qc7 {[%clk 0:02:28.1]} 13. c4 {[%clk 0:02:21.1]} 13... Nb4 {[%clk
0:02:15.1]} 14. Nc3 {[%clk 0:02:13.8]} 14... a6 {[%clk 0:02:03.4]} 15. a3 {[%clk
0:02:07.4]} 15... Nc6 {[%clk 0:02:03.1]} 16. b4 {[%clk 0:02:06.5]} 16... Be7
{[%clk 0:02:03.8]} 17. Bb2 {[%clk 0:02:06.6]} 17... Nde5 {[%clk 0:02:02.8]} 18.
Ne4 {[%clk 0:01:58.5]} 18... Nxf3+ {[%clk 0:01:58.2]} 19. Qxf3 {[%clk
0:01:59.4]} 19... Rfd8 {[%clk 0:01:53.3]} 20. Qg3 {[%clk 0:01:40.8]} 20... Qxg3
{[%clk 0:01:52.1]} 21. hxg3 {[%clk 0:01:41.7]} 21... f5 {[%clk 0:01:49.3]} 22.
Nd2 {[%clk 0:01:20.3]} 22... Nd4 {[%clk 0:01:27.7]} 23. Nf3 {[%clk 0:01:15.2]}
23... Bf6 {[%clk 0:01:21.8]} 1-0

[Event "Late-Titled-Tuesday-Blitz-September-05-2023"]
[Site "Chess.com"]
[Date "2023.09.05"]
[Round "7"]
[White "dropstoneDP"]
[Black "Malev212"]
[Result "1-0"]
[WhiteElo "3005"]
[BlackElo "2635"]
[TimeControl "180+1"]
[EndTime "15:15:04 PDT"]
[Termination "dropstoneDP won by resignation"]

1. Nf3 {[%clk 0:03:00.9]} 1... d5 {[%clk 0:02:52.3]} 2. g3 {[%clk 0:03:00.9]}
2... c6 {[%clk 0:02:51.4]} 3. Bg2 {[%clk 0:03:01.1]} 3... Bg4 {[%clk 0:02:51.5]}
4. c4 {[%clk 0:03:00.8]} 4... e6 {[%clk 0:02:49.8]} 5. cxd5 {[%clk 0:03:00.8]}
5... exd5 {[%clk 0:02:49.5]} 6. Qb3 {[%clk 0:03:00.6]} 6... Qb6 {[%clk
0:02:38.4]} 7. Ne5 {[%clk 0:02:59.1]} 7... Be6 {[%clk 0:02:18.6]} 8. Nc3 {[%clk
0:02:56.7]} 8... Bd6 {[%clk 0:02:12.7]} 9. d4 {[%clk 0:02:45.8]} 9... Ne7 {[%clk
0:01:51.9]} 10. Bf4 {[%clk 0:02:41]} 10... Qxb3 {[%clk 0:01:33.2]} 11. axb3
{[%clk 0:02:39.4]} 11... f6 {[%clk 0:01:24.6]} 12. Nxc6 {[%clk 0:02:36.9]} 12...
Nbxc6 {[%clk 0:01:18.5]} 13. Bxd6 {[%clk 0:02:36]} 13... Nxd4 {[%clk 0:01:18.3]}
14. O-O {[%clk 0:02:35.3]} 14... Nxb3 {[%clk 0:01:05.7]} 15. Ra4 {[%clk
0:02:28]} 15... Nf5 {[%clk 0:00:50.2]} 16. Ba3 {[%clk 0:02:26.3]} 16... Kf7
{[%clk 0:00:39.8]} 17. Nxd5 {[%clk 0:02:20.4]} 17... Rhc8 {[%clk 0:00:24.5]} 18.
Nf4 {[%clk 0:02:18.6]} 18... Rc7 {[%clk 0:00:18.5]} 19. Nxe6 {[%clk 0:02:16.8]}
19... Kxe6 {[%clk 0:00:18]} 20. Bh3 {[%clk 0:02:16.5]} 1-0

[Event "Late-Titled-Tuesday-Blitz-September-05-2023"]
[Site "Chess.com"]
[Date "2023.09.05"]
[Round "7"]
[White "drinbet"]
[Black "KrokerGuy"]
[Result "0-1"]
[WhiteElo "2272"]
[BlackElo "2500"]
[TimeControl "180+1"]
[EndTime "15:15:10 PDT"]
[Termination "KrokerGuy won by resignation"]

1. e4 {[%clk 0:02:50.5]} 1... e5 {[%clk 0:02:59.3]} 2. f4 {[%clk 0:02:48.5]}
2... exf4 {[%clk 0:02:59.3]} 3. Bc4 {[%clk 0:02:48.2]} 3... Qh4+ {[%clk
0:02:58.5]} 4. Kf1 {[%clk 0:02:47.9]} 4... d6 {[%clk 0:02:53.8]} 5. d4 {[%clk
0:02:45.1]} 5... g5 {[%clk 0:02:48.5]} 6. Nc3 {[%clk 0:02:38.6]} 6... Nc6 {[%clk
0:02:43]} 7. Nd5 {[%clk 0:02:33.5]} 7... Bg4 {[%clk 0:02:33.5]} 8. Qd3 {[%clk
0:02:26.5]} 8... O-O-O {[%clk 0:02:28.7]} 9. b4 {[%clk 0:02:22.4]} 9... Bg7
{[%clk 0:02:26.6]} 10. c3 {[%clk 0:02:20.7]} 10... f5 {[%clk 0:02:03.8]} 11.
exf5 {[%clk 0:01:52]} 11... Nh6 {[%clk 0:01:26.3]} 12. f6 {[%clk 0:01:41.3]}
12... Rhe8 {[%clk 0:01:26.5]} 13. g3 {[%clk 0:01:13.9]} 13... Bh3+ {[%clk
0:01:13.4]} 14. Kf2 {[%clk 0:01:06.7]} 14... Ng4+ {[%clk 0:01:12.5]} 0-1

[Event "Late-Titled-Tuesday-Blitz-September-05-2023"]
[Site "Chess.com"]
[Date "2023.09.05"]
[Round "7"]
[White "TheMagician"]
[Black "MusicCityMaster"]
[Result "1-0"]
[WhiteElo "2102"]
[BlackElo "2407"]
[TimeControl "180+1"]
[EndTime "15:15:26 PDT"]
[Termination "TheMagician won by resignation"]

1. d4 {[%clk 0:03:00.9]} 1... Nf6 {[%clk 0:02:57.4]} 2. Nf3 {[%clk 0:02:59.6]}
2... g6 {[%clk 0:02:57.2]} 3. g3 {[%clk 0:02:59.9]} 3... Bg7 {[%clk 0:02:56.7]}
4. Bg2 {[%clk 0:03:00.6]} 4... O-O {[%clk 0:02:57.2]} 5. O-O {[%clk 0:03:01.2]}
5... d6 {[%clk 0:02:58]} 6. c4 {[%clk 0:03:01.2]} 6... Nbd7 {[%clk 0:02:57.6]}
7. Nc3 {[%clk 0:03:01.2]} 7... e5 {[%clk 0:02:58.3]} 8. dxe5 {[%clk 0:03:01.5]}
8... dxe5 {[%clk 0:02:58.1]} 9. Qc2 {[%clk 0:03:00.1]} 9... c6 {[%clk
0:02:57.1]} 10. Rd1 {[%clk 0:02:59.7]} 10... Qe7 {[%clk 0:02:57.2]} 11. Ng5
{[%clk 0:02:51.1]} 11... Nc5 {[%clk 0:02:44.7]} 12. b4 {[%clk 0:02:50.5]} 12...
Ne6 {[%clk 0:02:44.2]} 13. Nxe6 {[%clk 0:02:46.5]} 13... Bxe6 {[%clk 0:02:45.1]}
14. c5 {[%clk 0:02:40.2]} 14... Rfd8 {[%clk 0:02:44.2]} 15. Bg5 {[%clk
0:02:38.6]} 15... h6 {[%clk 0:02:31.8]} 16. Bxf6 {[%clk 0:02:37.1]} 16... Bxf6
{[%clk 0:02:32.2]} 17. Ne4 {[%clk 0:02:37]} 17... Bf5 {[%clk 0:02:32.5]} 18.
Nxf6+ {[%clk 0:02:36.4]} 18... Qxf6 {[%clk 0:02:32.6]} 19. Qc3 {[%clk
0:02:36.1]} 19... h5 {[%clk 0:02:19.3]} 20. e3 {[%clk 0:02:35.8]} 20... Kg7
{[%clk 0:02:18.3]} 21. f4 {[%clk 0:02:23.9]} 21... exf4 {[%clk 0:02:17.7]} 22.
Qxf6+ {[%clk 0:02:23.4]} 22... Kxf6 {[%clk 0:02:18.6]} 23. gxf4 {[%clk
0:02:23.2]} 23... a6 {[%clk 0:02:15.4]} 24. Kf2 {[%clk 0:02:19.3]} 24... Bg4
{[%clk 0:02:14.4]} 25. Rd4 {[%clk 0:02:14.1]} 25... Rxd4 {[%clk 0:02:07.3]} 26.
exd4 {[%clk 0:02:14.1]} 26... Kf5 {[%clk 0:02:03]} 27. d5 {[%clk 0:02:11.2]}
27... Re8 {[%clk 0:01:52.8]} 28. dxc6 {[%clk 0:02:08.6]} 28... bxc6 {[%clk
0:01:52.3]} 29. Bxc6 {[%clk 0:02:07.2]} 29... Re2+ {[%clk 0:01:52.3]} 30. Kg1
{[%clk 0:02:06.8]} 30... h4 {[%clk 0:01:41.4]} 31. Bd7+ {[%clk 0:01:58.8]} 31...
Kxf4 {[%clk 0:01:41.1]} 32. Bxg4 {[%clk 0:01:45]} 32... Kxg4 {[%clk 0:01:41.1]}
33. Rc1 {[%clk 0:01:44.8]} 33... Re8 {[%clk 0:01:15.7]} 34. c6 {[%clk 0:01:42]}
34... Kf5 {[%clk 0:01:15.3]} 35. a4 {[%clk 0:01:42.1]} 35... Rc8 {[%clk
0:01:12.6]} 36. b5 {[%clk 0:01:41.8]} 36... axb5 {[%clk 0:01:13.1]} 37. axb5
{[%clk 0:01:42]} 37... Ke6 {[%clk 0:01:13.8]} 38. b6 {[%clk 0:01:42.1]} 38...
Kd6 {[%clk 0:01:14.2]} 39. b7 {[%clk 0:01:39.1]} 1-0

[Event "Late-Titled-Tuesday-Blitz-September-05-2023"]
[Site "Chess.com"]
[Date "2023.09.05"]
[Round "7"]
[White "2k28Lakers"]
[Black "kingofthenil"]
[Result "0-1"]
[WhiteElo "2535"]
[BlackElo "2769"]
[TimeControl "180+1"]
[EndTime "15:15:32 PDT"]
[Termination "kingofthenil won by resignation"]

1. e4 {[%clk 0:03:00.9]} 1... Nc6 {[%clk 0:02:59.8]} 2. Nf3 {[%clk 0:03:00.1]}
2... d5 {[%clk 0:03:00.7]} 3. e5 {[%clk 0:02:59.7]} 3... Bg4 {[%clk 0:03:00.1]}
4. Bb5 {[%clk 0:02:55.4]} 4... e6 {[%clk 0:02:59.2]} 5. d4 {[%clk 0:02:53.2]}
5... Ne7 {[%clk 0:02:58.3]} 6. c3 {[%clk 0:02:51.7]} 6... a6 {[%clk 0:02:58.4]}
7. Ba4 {[%clk 0:02:51.7]} 7... b5 {[%clk 0:02:58.6]} 8. Bc2 {[%clk 0:02:51.8]}
8... f6 {[%clk 0:02:58.4]} 9. exf6 {[%clk 0:02:49.6]} 9... gxf6 {[%clk
0:02:59.3]} 10. h3 {[%clk 0:02:47.9]} 10... Bh5 {[%clk 0:02:58.8]} 11. Be3
{[%clk 0:02:47]} 11... e5 {[%clk 0:02:58.1]} 12. dxe5 {[%clk 0:02:41]} 12...
fxe5 {[%clk 0:02:59]} 13. g4 {[%clk 0:02:33.3]} 13... Bg6 {[%clk 0:02:58.8]} 14.
Bxg6+ {[%clk 0:02:24.3]} 14... Nxg6 {[%clk 0:02:58.6]} 15. O-O {[%clk
0:02:11.6]} 15... Be7 {[%clk 0:02:56.8]} 16. Bh6 {[%clk 0:02:03.8]} 16... Qd7
{[%clk 0:02:54.8]} 17. a4 {[%clk 0:02:02]} 17... Rb8 {[%clk 0:02:43]} 18. axb5
{[%clk 0:02:01.8]} 18... axb5 {[%clk 0:02:43.9]} 19. Na3 {[%clk 0:01:50.2]}
19... Bf8 {[%clk 0:02:39.4]} 20. Bxf8 {[%clk 0:01:45]} 20... Rxf8 {[%clk
0:02:39.5]} 21. Nc2 {[%clk 0:01:42.1]} 21... Nf4 {[%clk 0:02:38.2]} 22. Kh2
{[%clk 0:01:37.7]} 22... h5 {[%clk 0:02:38.7]} 23. Re1 {[%clk 0:01:28.2]} 23...
e4 {[%clk 0:02:38.6]} 24. Nfd4 {[%clk 0:01:24.5]} 24... Ne5 {[%clk 0:02:35.4]}
25. Nf5 {[%clk 0:01:22.9]} 25... Rxf5 {[%clk 0:02:35.1]} 26. gxf5 {[%clk
0:01:23.2]} 26... Qxf5 {[%clk 0:02:35.5]} 27. Re3 {[%clk 0:01:16.2]} 27... Kd7
{[%clk 0:02:36]} 28. Nd4 {[%clk 0:01:05.9]} 28... Qf6 {[%clk 0:02:36.2]} 29. Ra7
{[%clk 0:00:55.5]} 29... Rg8 {[%clk 0:02:35.2]} 30. Rg3 {[%clk 0:00:49.9]} 30...
Rxg3 {[%clk 0:02:33.7]} 31. fxg3 {[%clk 0:00:47.1]} 31... Nfd3 {[%clk
0:02:34.2]} 32. Qe2 {[%clk 0:00:42.1]} 32... h4 {[%clk 0:02:34.3]} 33. Nxb5
{[%clk 0:00:26.4]} 33... hxg3+ {[%clk 0:02:33.5]} 34. Kxg3 {[%clk 0:00:24.9]}
34... Qg5+ {[%clk 0:02:24.7]} 35. Kh2 {[%clk 0:00:22.3]} 35... Nf3+ {[%clk
0:02:25.6]} 36. Qxf3 {[%clk 0:00:20.4]} 36... exf3 {[%clk 0:02:25.3]} 37. Rxc7+
{[%clk 0:00:20.5]} 37... Kd8 {[%clk 0:02:25.6]} 0-1

[Event "Late-Titled-Tuesday-Blitz-September-05-2023"]
[Site "Chess.com"]
[Date "2023.09.05"]
[Round "7"]
[White "szachmistrz2500"]
[Black "Jarming"]
[Result "0-1"]
[WhiteElo "2473"]
[BlackElo "2649"]
[TimeControl "180+1"]
[EndTime "15:15:34 PDT"]
[Termination "Jarming won by resignation"]

1. Nf3 {[%clk 0:02:57.9]} 1... Nf6 {[%clk 0:02:55.5]} 2. g3 {[%clk 0:02:58.2]}
2... e6 {[%clk 0:02:55.7]} 3. Bg2 {[%clk 0:02:59.1]} 3... d5 {[%clk 0:02:56.1]}
4. O-O {[%clk 0:02:59.2]} 4... Be7 {[%clk 0:02:57]} 5. d3 {[%clk 0:02:59.6]}
5... O-O {[%clk 0:02:57.9]} 6. Nbd2 {[%clk 0:02:59.9]} 6... c5 {[%clk
0:02:58.4]} 7. e4 {[%clk 0:03:00.3]} 7... Nc6 {[%clk 0:02:59.3]} 8. Re1 {[%clk
0:02:59.2]} 8... b5 {[%clk 0:02:59.9]} 9. e5 {[%clk 0:02:59.3]} 9... Nd7 {[%clk
0:02:59.8]} 10. Nf1 {[%clk 0:02:57.9]} 10... b4 {[%clk 0:02:59.4]} 11. h4 {[%clk
0:02:56.8]} 11... a5 {[%clk 0:03:00.3]} 12. h5 {[%clk 0:02:55.6]} 12... a4
{[%clk 0:02:57.7]} 13. h6 {[%clk 0:02:55.4]} 13... g6 {[%clk 0:02:58]} 14. N1h2
{[%clk 0:02:55.5]} 14... Ba6 {[%clk 0:02:56.3]} 15. b3 {[%clk 0:02:40.9]} 15...
axb3 {[%clk 0:02:54.8]} 16. axb3 {[%clk 0:02:40.5]} 16... c4 {[%clk 0:02:48.5]}
17. Bf4 {[%clk 0:02:39]} 17... cxd3 {[%clk 0:02:47.9]} 18. cxd3 {[%clk
0:02:38.6]} 18... Bb5 {[%clk 0:02:39.6]} 19. Qe2 {[%clk 0:02:27.3]} 19... Ra3
{[%clk 0:02:38.1]} 20. Rab1 {[%clk 0:02:19.5]} 20... Nc5 {[%clk 0:02:37.4]} 21.
Red1 {[%clk 0:02:10.7]} 21... Rxb3 {[%clk 0:02:33.8]} 22. Rxb3 {[%clk
0:02:07.5]} 22... Nxb3 {[%clk 0:02:34.7]} 23. Ng4 {[%clk 0:02:06.5]} 23... Nbd4
{[%clk 0:02:34.4]} 24. Nxd4 {[%clk 0:02:06.4]} 24... Nxd4 {[%clk 0:02:35.3]} 25.
Qe3 {[%clk 0:02:00.2]} 25... Nf5 {[%clk 0:02:31.5]} 26. Qa7 {[%clk 0:01:56.9]}
26... Qa8 {[%clk 0:02:23.2]} 27. Ra1 {[%clk 0:01:49.5]} 27... Qxa7 {[%clk
0:02:20.9]} 28. Rxa7 {[%clk 0:01:49.5]} 28... Bxd3 {[%clk 0:02:13.3]} 29. Rb7
{[%clk 0:01:48]} 29... Rc8 {[%clk 0:01:59.2]} 30. Ne3 {[%clk 0:01:44.5]} 30...
Nxe3 {[%clk 0:01:54]} 31. Bxe3 {[%clk 0:01:44.3]} 31... Bf8 {[%clk 0:01:52.5]}
32. Bg5 {[%clk 0:01:34.9]} 32... Bc2 {[%clk 0:01:51.5]} 33. Bf1 {[%clk
0:01:33.5]} 33... b3 {[%clk 0:01:50.9]} 34. Kg2 {[%clk 0:01:30.7]} 34... Ba3
{[%clk 0:01:49.8]} 35. Ba6 {[%clk 0:01:20.5]} 35... Ra8 {[%clk 0:01:40.6]} 36.
Kf3 {[%clk 0:01:16.5]} 36... b2 {[%clk 0:01:35.9]} 0-1

[Event "Late-Titled-Tuesday-Blitz-September-05-2023"]
[Site "Chess.com"]
[Date "2023.09.05"]
[Round "7"]
[White "infinitegiantkiller"]
[Black "IMSlavin"]
[Result "1-0"]
[WhiteElo "2494"]
[BlackElo "2180"]
[TimeControl "180+1"]
[EndTime "15:15:42 PDT"]
[Termination "infinitegiantkiller won by resignation"]

1. Nf3 {[%clk 0:03:00.9]} 1... Nc6 {[%clk 0:03:00.4]} 2. g3 {[%clk 0:03:01.8]}
2... Nf6 {[%clk 0:02:59.6]} 3. d4 {[%clk 0:03:01.2]} 3... d6 {[%clk 0:03:00.5]}
4. Bg2 {[%clk 0:03:01.3]} 4... Bf5 {[%clk 0:02:59.9]} 5. O-O {[%clk 0:03:01]}
5... Qc8 {[%clk 0:03:00]} 6. b3 {[%clk 0:03:01.3]} 6... Bh3 {[%clk 0:03:00.1]}
7. Bb2 {[%clk 0:03:02]} 7... Bxg2 {[%clk 0:03:00.1]} 8. Kxg2 {[%clk 0:03:02.9]}
8... e6 {[%clk 0:03:00.6]} 9. c4 {[%clk 0:03:02.4]} 9... Be7 {[%clk 0:03:00.5]}
10. d5 {[%clk 0:03:03]} 10... Nb8 {[%clk 0:02:56.6]} 11. Nc3 {[%clk 0:03:00.2]}
11... e5 {[%clk 0:02:56.5]} 12. e4 {[%clk 0:02:58.5]} 12... h6 {[%clk
0:02:54.7]} 13. Nh4 {[%clk 0:02:57.1]} 13... g6 {[%clk 0:02:49.4]} 14. f4 {[%clk
0:02:52.1]} 14... Nbd7 {[%clk 0:02:46.9]} 15. Nf3 {[%clk 0:02:50.2]} 15... exf4
{[%clk 0:02:37.5]} 16. gxf4 {[%clk 0:02:51.1]} 16... O-O {[%clk 0:02:34.1]} 17.
h3 {[%clk 0:02:46.1]} 17... Nh5 {[%clk 0:02:33.8]} 18. Ne2 {[%clk 0:02:41.6]}
18... Bf6 {[%clk 0:02:32.5]} 19. e5 {[%clk 0:02:40.7]} 19... dxe5 {[%clk
0:02:30.5]} 20. fxe5 {[%clk 0:02:41.6]} 20... Bg7 {[%clk 0:02:29.1]} 21. Qd2
{[%clk 0:02:36.2]} 21... Re8 {[%clk 0:02:07.8]} 22. Nf4 {[%clk 0:02:36.3]} 22...
Nxe5 {[%clk 0:01:43.2]} 23. Nxe5 {[%clk 0:02:31.8]} 23... Bxe5 {[%clk
0:01:41.7]} 24. Nxh5 {[%clk 0:02:31.7]} 24... Bxb2 {[%clk 0:01:21.4]} 25. Qxb2
{[%clk 0:02:32.6]} 25... gxh5 {[%clk 0:01:21.4]} 26. Rf3 {[%clk 0:02:23.5]}
26... h4 {[%clk 0:01:11.4]} 27. Kh2 {[%clk 0:02:21.9]} 27... f6 {[%clk 0:00:30]}
28. Rg1+ {[%clk 0:02:19.6]} 28... Kh7 {[%clk 0:00:29.2]} 29. Qxf6 {[%clk
0:02:19.6]} 29... Re2+ {[%clk 0:00:28.5]} 30. Kh1 {[%clk 0:02:18.1]} 30... Qd7
{[%clk 0:00:15.5]} 31. Qg6+ {[%clk 0:02:15.5]} 31... Kh8 {[%clk 0:00:14.5]} 32.
Qxh6+ {[%clk 0:02:16.1]} 32... Qh7 {[%clk 0:00:15.4]} 33. Qf6+ {[%clk
0:02:16.3]} 1-0